bitfinex-derivatives/quotes_SOLF0:USTF0_20241120
["timestamp","ask_amount","ask_price","bid_price","bid_amount"]
[1732107970890,15.34249077,236.27,236.08,2.34]
[1732107971190,10.78229077,236.26,236.08,2.34]
[1732107971387,13.18449077,236.26,236.08,2.34]
[1732107971583,2.1145,236.21,236.08,2.34]
[1732107971991,2.34,236.22,236.08,2.34]
[1732107972186,2.1147,236.19,236.08,2.34]
[1732107972589,2.34,236.22,236.08,2.34]
[1732107972783,2.1147,236.2,236.08,2.34]
[1732107973087,2.34,236.22,236.08,2.34]
[1732107973394,10.79103766,236.21,236.08,2.34]
[1732107973787,10.79103766,236.21,236.05,2.4108]
[1732107974087,2.1151,236.14,236.05,2.4108]
[1732107974792,10.79394302,236.21,236.05,2.4108]
[1732107974991,2.34,236.22,236.09,16.54250554]
[1732107975192,2.34,236.22,236.05,2.4108]
[1732107975193,2.34,236.22,236.05,18.95330554]
[1732107975384,10.79708669,236.21,236.05,18.95330554]
[1732107976284,2.1149,236.17,236.05,18.95330554]
[1732107976486,10.79708669,236.21,236.05,2.4108]
[1732107976688,10.79708669,236.21,236.04,2.32]
[1732107976894,2.1152,236.14,236.04,2.32]
[1732107977193,2.32,236.15,236.01,18.86250554]
[1732107977491,2.32,236.14,236.01,18.86250554]
[1732107980704,2.32,236.19,236.05,16.54250554]
[1732107980905,16.54250554,236.24,236.05,16.54250554]
[1732107981104,2.32,236.25,236.09,16.54250554]
[1732107981304,2.4022,236.26,236.1,4.7269]
[1732107981305,4.7222,236.26,236.1,4.7269]
[1732107981700,4.7222,236.26,236.13,16.54250554]
[1732107983004,6.8362,236.26,236.13,16.54250554]
[1732107983205,4.7222,236.26,236.13,16.54250554]
[1732107983405,4.7222,236.26,236.1,4.7269]
[1732107983406,2.1145,236.22,236.1,4.7269]
[1732107983605,4.7222,236.26,236.1,4.7269]
[1732107984003,10.80018526,236.25,236.1,4.7269]
[1732107984800,2.1146,236.2,236.1,4.7269]
[1732107985705,2.1147,236.19,236.1,2.32]
[1732107986906,10.80018526,236.25,236.06,4.5397]
[1732107987096,2.1145,236.21,236.07,2.32]
[1732107987296,10.80018526,236.25,236.08,2.2048]
[1732107987500,2.1146,236.2,236.08,2.2048]
[1732107987705,10.80018526,236.25,236.09,16.54250554]
[1732107987906,4.7222,236.26,236.08,2.2048]
[1732107987907,4.7222,236.26,236.13,16.54250554]
[1732107988098,4.7222,236.26,236.13,18.86250554]
[1732107988502,2.32,236.26,236.13,18.86250554]
[1732107988704,2.2542,236.27,236.13,18.86250554]
[1732107989402,2.32,236.3,236.13,18.86250554]
[1732107990203,2.32,236.3,236.17,16.54250554]
[1732107990404,2.32,236.34,236.21,16.54250554]
[1732107990609,10.7971206,236.33,236.21,16.54250554]
[1732107990808,2.32,236.34,236.21,16.54250554]
[1732107991103,2.2266,236.36,236.25,16.54250554]
[1732107991306,2.2218,236.37,236.25,16.54250554]
[1732107992908,2.32,236.39,236.26,2.32]
[1732107994110,4.4329,236.39,236.26,2.32]
[1732107995016,2.32,236.39,236.26,2.32]
[1732107996014,2.1132,236.36,236.26,2.32]
[1732107997310,2.32,236.39,236.26,2.32]
[1732107997518,2.32,236.41,236.26,2.32]
[1732107997713,6.71,236.43,236.26,2.32]
[1732107997913,2.1127,236.42,236.26,2.32]
[1732107998115,9.03,236.43,236.26,2.32]
[1732107998313,6.7617,236.43,236.26,2.32]
[1732107998515,6.7617,236.43,236.29,16.54250554]
[1732107998811,4.4417,236.43,236.29,16.54250554]
[1732107999315,0.67417,236.43,236.29,16.54250554]
[1732107999520,0.67417,236.43,236.33,16.54250554]
[1732107999711,0.67417,236.43,236.34,2.32]
[1732108003919,2.1127,236.42,236.31,2.28]
[1732108004320,2.1127,236.42,236.3,2.28]
[1732108004521,0.67417,236.43,236.3,2.28]
[1732108005422,2.1126,236.42,236.3,2.28]
[1732108005830,0.67417,236.43,236.3,2.28]
[1732108006131,2.1129,236.4,236.3,2.28]
[1732108007134,0.67417,236.43,236.3,2.28]
[1732108007827,2.1128,236.4,236.3,2.28]
[1732108008027,0.67417,236.43,236.3,2.28]
[1732108009824,2.113,236.38,236.3,2.28]
[1732108010030,0.67417,236.43,236.3,2.28]
[1732108010427,0.67417,236.43,236.32,10.30382651]
[1732108011122,2.1128,236.4,236.32,10.30382651]
[1732108012031,2.1127,236.41,236.32,10.30382651]
[1732108014031,0.67417,236.43,236.32,10.30382651]
[1732108014227,0.67417,236.43,236.38,10.30382651]
[1732108015132,0.67417,236.43,236.41,10.30382651]
[1732108016735,0.67417,236.43,236.4,16.46813861]
[1732108017336,2.112,236.5,236.4,16.46813861]
[1732108017735,4.61,236.51,236.36,16.46813861]
[1732108018928,2.1121,236.48,236.36,16.46813861]
[1732108019137,4.61,236.51,236.36,16.46813861]
[1732108019831,2.1121,236.48,236.36,16.46813861]
[1732108020042,4.61,236.51,236.36,16.46813861]
[1732108020337,4.61,236.51,236.35,2.28]
[1732108020338,4.61,236.51,236.4,16.46813861]
[1732108020836,6.7219,236.51,236.4,16.46813861]
[1732108021137,4.61,236.51,236.4,16.46813861]
[1732108022536,4.61,236.51,236.41,2.28]
[1732108023237,2.112,236.49,236.41,2.28]
[1732108024836,2.1121,236.48,236.41,2.28]
[1732108025828,2.28,236.49,236.32,16.46813861]
[1732108026029,2.28,236.49,236.33,2.28]
[1732108026434,2.1128,236.41,236.33,2.28]
[1732108027229,2.1129,236.39,236.33,2.28]
[1732108027635,2.28,236.43,236.33,2.28]
[1732108027836,2.113,236.38,236.33,2.28]
[1732108028336,2.1132,236.36,236.25,2.28]
[1732108028538,2.28,236.37,236.25,2.28]
[1732108028831,2.1131,236.36,236.24,18.74813861]
[1732108029030,2.28,236.37,236.24,18.74813861]
[1732108029230,2.28,236.37,236.24,16.46813861]
[1732108029533,2.28,236.37,236.22,6.7786]
[1732108029735,16.46813861,236.36,236.18,30.48179769]
[1732108029933,10.75204037,236.35,236.18,30.48179769]
[1732108030136,16.46813861,236.32,236.18,30.48179769]
[1732108030336,2.28,236.31,236.18,30.48179769]
[1732108030531,13.0382782,236.31,236.18,30.48179769]
[1732108030831,13.0382782,236.31,236.14,2.3559]
[1732108030832,2.28,236.31,236.14,2.3559]
[1732108031041,2.28,236.31,236.2,16.46813861]
[1732108031230,2.28,236.31,236.2,18.74813861]
[1732108033036,2.28,236.31,236.14,2.3559]
[1732108033234,2.114,236.27,236.14,2.3559]
[1732108034043,10.77525524,236.3,236.14,2.3559]
[1732108034044,10.77525524,236.3,236.16,16.46813861]
[1732108034241,2.28,236.31,236.16,16.46813861]
[1732108034444,2.28,236.31,236.17,2.28]
[1732108034943,10.77586583,236.3,236.14,2.3559]
[1732108035242,10.77586583,236.3,236.13,2.28]
[1732108035439,2.1144,236.22,236.13,2.28]
[1732108035642,2.1144,236.22,236.09,2.28]
[1732108036035,2.28,236.23,236.09,2.28]
[1732108036036,4.3944,236.23,236.09,2.28]
[1732108036337,2.28,236.23,236.05,16.46813861]
[1732108036936,2.1145,236.21,236.05,16.46813861]
[1732108037340,2.28,236.22,236.09,16.46813861]
[1732108037543,2.28,236.22,236.09,18.74813861]
[1732108037743,2.28,236.23,236.09,18.74813861]
[1732108037944,2.28,236.23,236.1,6.8174]
[1732108039142,16.46813861,236.36,236.13,16.46813861]
[1732108039342,15.2950895,236.35,236.17,16.46813861]
[1732108039539,2.1137,236.3,236.18,2.28]
[1732108040145,2.1136,236.32,236.18,2.28]
[1732108040348,4.541,236.35,236.18,2.28]
[1732108041243,2.1136,236.31,236.18,2.28]
[1732108041642,4.541,236.35,236.18,2.28]
[1732108041839,2.1135,236.32,236.18,2.28]
[1732108042145,0.45272,236.34,236.18,2.28]
[1732108043348,2.1136,236.31,236.18,2.28]
[1732108044748,2.1136,236.31,236.2,10.31209853]
[1732108045146,10.31209853,236.3,236.14,10.31209853]
[1732108045343,2.28,236.29,236.14,10.31209853]
[1732108046148,2.3762,236.28,236.14,10.31209853]
[1732108046745,2.3762,236.28,236.12,2.28]
[1732108047045,2.1143,236.24,236.12,2.28]
[1732108047244,2.3762,236.28,236.12,2.28]
[1732108048449,2.28,236.29,236.14,16.50931894]
[1732108049250,2.1138,236.3,236.14,16.50931894]
[1732108049554,2.28,236.29,236.14,16.50931894]
[1732108050857,2.28,236.29,236.12,2.28]
[1732108051255,2.28,236.29,236.11,2.28]
[1732108051558,16.50931894,236.27,236.1,6.8174]
[1732108052050,16.50931894,236.27,236.04,16.50931894]
[1732108052051,16.50931894,236.23,236.04,16.50931894]
[1732108052251,6.7251,236.22,236.04,16.50931894]
[1732108052449,2.1151,236.14,236.04,16.50931894]
[1732108052651,2.28,236.16,236.04,16.50931894]
[1732108052856,2.1152,236.14,236.04,16.50931894]
[1732108053057,2.28,236.16,236.04,16.50931894]
[1732108053653,2.115,236.15,236.04,16.50931894]
[1732108055454,2.115,236.15,235.98,6.7712]
[1732108055455,2.1154,236.12,236.01,2.28]
[1732108056157,2.28,236.16,236.01,2.28]
[1732108057060,2.28,236.16,236.04,16.50931894]
[1732108057255,4.395,236.16,236.04,16.50931894]
[1732108057458,2.28,236.16,236.04,16.50931894]
[1732108057654,2.3873,236.18,236.04,16.50931894]
[1732108057959,2.28,236.17,236.04,16.50931894]
[1732108058551,4.3948,236.17,236.04,16.50931894]
[1732108059158,2.1148,236.17,236.04,16.50931894]
[1732108060160,2.115,236.16,236.04,16.50931894]
[1732108061156,4.3948,236.18,236.04,16.50931894]
[1732108061355,2.28,236.18,236.04,16.50931894]
[1732108063058,2.28,236.18,236.01,2.28]
[1732108063059,2.28,236.18,236.08,16.50931894]
[1732108063259,0.36748,236.29,236.12,16.50931894]
[1732108063457,2.64748,236.29,236.12,16.50931894]
[1732108064467,2.114,236.27,236.12,16.50931894]
[1732108065665,2.64748,236.29,236.12,16.50931894]
[1732108066068,2.1142,236.24,236.12,16.50931894]
[1732108066265,2.64748,236.29,236.12,16.50931894]
[1732108067366,2.1142,236.25,236.12,16.50931894]
[1732108068269,2.64748,236.29,236.12,16.50931894]
[1732108068660,10.31948442,236.27,236.11,10.31948442]
[1732108068868,2.1145,236.21,236.11,10.31948442]
[1732108069173,10.31948442,236.27,236.11,10.31948442]
[1732108069360,2.1144,236.22,236.11,10.31948442]
[1732108070066,2.1144,236.22,236.11,12.59948442]
[1732108070671,2.1145,236.21,236.11,12.59948442]
[1732108070873,10.31948442,236.27,236.11,12.59948442]
[1732108070874,2.28,236.23,236.11,12.59948442]
[1732108071571,2.1146,236.21,236.11,12.59948442]
[1732108072072,2.28,236.23,236.11,10.31948442]
[1732108072268,2.28,236.23,236.1,2.28]
[1732108072269,2.28,236.23,236.14,10.31948442]
[1732108072470,2.28,236.27,236.17,10.31948442]
[1732108072671,2.1141,236.25,236.17,10.31948442]
[1732108073773,2.28,236.27,236.17,10.31948442]
[1732108073966,2.28,236.27,236.2,10.31948442]
[1732108074170,0.36748,236.29,236.2,10.31948442]
[1732108075066,0.36748,236.29,236.23,10.31948442]
[1732108076868,0.36748,236.29,236.26,10.31948442]
[1732108077070,2.28,236.38,236.26,10.31948442]
[1732108077274,10.31948442,236.45,236.3,10.31948442]
[1732108077577,13.06406549,236.44,236.3,10.31948442]
[1732108077777,10.78406549,236.43,236.3,10.31948442]
[1732108078473,2.28,236.44,236.3,10.31948442]
[1732108078675,2.28,236.46,236.32,16.47893008]
[1732108078875,2.28,236.46,236.33,2.341]
[1732108079184,2.28,236.46,236.34,2.28]
[1732108080269,2.1123,236.45,236.34,2.28]
[1732108080478,2.28,236.46,236.24,2.2335]
[1732108080671,2.28,236.46,236.26,16.47893008]
[1732108080672,23.58153008,236.44,236.26,16.47893008]
[1732108080878,10.76957587,236.43,236.25,4.621]
[1732108081578,16.47893008,236.4,236.25,2.341]
[1732108081877,13.0491257,236.39,236.25,2.341]
[1732108082073,2.28,236.39,236.25,2.341]
[1732108083385,2.28,236.39,236.25,18.81993008]
[1732108084077,2.28,236.39,236.25,2.341]
[1732108084582,2.1135,236.33,236.25,2.341]
[1732108085383,2.1134,236.34,236.25,2.341]
[1732108085677,10.76417264,236.38,236.25,2.341]
[1732108085975,2.1135,236.33,236.25,2.341]
[1732108086577,10.76417264,236.38,236.25,2.341]
[1732108087480,2.1135,236.33,236.25,2.341]
[1732108088378,2.28,236.39,236.25,18.81993008]
[1732108088580,23.58153008,236.44,236.25,18.81993008]
[1732108088781,2.28,236.41,236.25,18.81993008]
[1732108089779,16.47893008,236.4,236.23,2.28]
[1732108089980,16.47893008,236.36,236.18,6.9034]
[1732108090179,13.03954161,236.35,236.18,6.9034]
[1732108090381,2.28,236.35,236.18,6.9034]
[1732108090582,2.1138,236.29,236.18,6.9034]
[1732108090788,7.0077,236.34,236.2,16.47893008]
[1732108091279,2.1136,236.32,236.2,16.47893008]
[1732108091884,2.1138,236.3,236.2,16.47893008]
[1732108092189,7.0077,236.34,236.2,16.47893008]
[1732108092589,2.1137,236.31,236.2,16.47893008]
[1732108092789,7.0077,236.34,236.2,16.47893008]
[1732108093787,4.6609,236.34,236.2,16.47893008]
[1732108093981,6.7743,236.34,236.2,16.47893008]
[1732108094186,2.28,236.35,236.2,16.47893008]
[1732108094686,2.1135,236.33,236.2,16.47893008]
[1732108097387,2.28,236.35,236.2,16.47893008]
[1732108097693,2.1137,236.3,236.2,16.47893008]
[1732108097889,2.28,236.35,236.18,4.6234]
[1732108098088,2.1728,236.34,236.18,4.6234]
[1732108098386,2.1139,236.29,236.18,4.6234]
[1732108098788,2.1139,236.29,236.18,14.93685091]
[1732108098987,2.1137,236.3,236.21,10.31345091]
[1732108099293,2.28,236.32,236.24,10.31345091]
[1732108100594,2.28,236.36,236.24,10.31345091]
[1732108101092,2.28,236.36,236.21,10.31345091]
[1732108101390,2.28,236.36,236.24,10.31345091]
[1732108101588,2.1135,236.33,236.24,10.31345091]
[1732108101891,2.28,236.36,236.24,10.31345091]
[1732108102590,2.1135,236.33,236.24,10.31345091]
[1732108102987,2.1135,236.32,236.24,10.31345091]
[1732108103190,2.28,236.34,236.21,10.31345091]
[1732108103689,2.1135,236.33,236.21,10.31345091]
[1732108104386,2.28,236.34,236.21,10.31345091]
[1732108104791,2.28,236.34,236.18,14.93685091]
[1732108105787,2.1138,236.29,236.18,14.93685091]
[1732108105991,2.28,236.34,236.24,10.31345091]
[1732108106391,2.1135,236.32,236.24,10.31345091]
[1732108106692,2.1135,236.32,236.21,10.31345091]
[1732108106895,2.28,236.34,236.19,2.28]
[1732108107189,2.28,236.34,236.21,10.31345091]
[1732108108195,2.1137,236.3,236.21,10.31345091]
[1732108108395,2.28,236.34,236.21,10.31345091]
[1732108108796,2.1136,236.31,236.21,10.31345091]
[1732108109693,2.28,236.34,236.21,10.31345091]
[1732108109993,2.28,236.34,236.24,10.31345091]
[1732108110493,2.1134,236.34,236.24,10.31345091]
[1732108111196,2.28,236.35,236.24,10.31345091]
[1732108111397,2.1134,236.33,236.24,10.31345091]
[1732108112393,2.28,236.35,236.19,2.28]
[1732108112593,10.31345091,236.33,236.18,4.6234]
[1732108112796,10.79926579,236.32,236.18,4.6234]
[1732108113100,2.114,236.26,236.18,4.6234]
[1732108113502,2.28,236.28,236.18,4.6234]
[1732108113901,2.114,236.27,236.18,4.6234]
[1732108114099,2.28,236.28,236.18,4.6234]
[1732108114292,2.1134,236.33,236.22,10.31345091]
[1732108114494,2.28,236.34,236.22,10.31345091]
[1732108114994,10.80302284,236.33,236.22,10.31345091]
[1732108116301,10.80302284,236.33,236.18,4.6234]
[1732108116302,21.11647375,236.33,236.19,10.31345091]
[1732108117202,2.1138,236.29,236.19,10.31345091]
[1732108117597,21.11647375,236.33,236.19,10.31345091]
[1732108117799,2.1139,236.28,236.19,10.31345091]
[1732108118200,10.80302284,236.33,236.19,10.31345091]
[1732108118407,10.80302284,236.33,236.22,10.31345091]
[1732108119002,2.1136,236.32,236.22,10.31345091]
[1732108119501,10.80302284,236.33,236.22,10.31345091]
[1732108119700,2.1136,236.31,236.22,10.31345091]
[1732108120204,2.1135,236.32,236.22,10.31345091]
[1732108121302,10.80302284,236.33,236.25,10.31345091]
[1732108121607,2.28,236.36,236.25,10.31345091]
[1732108121804,10.82177421,236.35,236.25,10.31345091]
[1732108122104,2.28,236.39,236.28,10.31345091]
[1732108122310,10.82027382,236.38,236.28,10.31345091]
[1732108122505,2.28,236.4,236.28,10.31345091]
[1732108122706,10.81914099,236.39,236.28,10.31345091]
[1732108122910,2.28,236.4,236.28,10.31345091]
[1732108123206,10.81898059,236.39,236.28,10.31345091]
[1732108123705,21.1324315,236.39,236.25,10.31345091]
[1732108123910,10.81898059,236.38,236.22,12.59345091]
[1732108125305,2.1135,236.33,236.22,12.59345091]
[1732108125510,2.28,236.34,236.25,10.31345091]
[1732108126616,2.28,236.34,236.22,12.59345091]
[1732108126802,10.83114112,236.33,236.19,10.31345091]
[1732108128104,2.1139,236.29,236.19,10.31345091]
[1732108128709,2.1139,236.28,236.19,10.31345091]
[1732108129517,2.1138,236.29,236.19,10.31345091]
[1732108129715,6.7893,236.35,236.22,10.31345091]
[1732108129913,13.11039,236.34,236.22,10.31345091]
[1732108130113,13.11039,236.34,236.18,4.6234]
[1732108130114,2.28,236.34,236.25,10.31345091]
[1732108130314,10.31345091,236.4,236.25,10.31345091]
[1732108130514,2.1133,236.35,236.25,10.31345091]
[1732108131316,12.94226064,236.38,236.28,10.31345091]
[1732108131515,10.82926064,236.38,236.28,10.31345091]
[1732108132017,2.1133,236.35,236.25,10.31345091]
[1732108132713,2.1133,236.34,236.25,10.31345091]
[1732108133114,10.82926064,236.38,236.25,10.31345091]
[1732108133308,10.82926064,236.38,236.23,2.28]
[1732108133615,10.82926064,236.38,236.22,10.31345091]
[1732108134311,10.82926064,236.38,236.21,2.28]
[1732108134312,2.1133,236.34,236.25,10.31345091]
[1732108135317,10.82926064,236.38,236.25,10.31345091]
[1732108135616,10.82926064,236.37,236.25,10.31345091]
[1732108136520,4.393,236.38,236.25,10.31345091]
[1732108137009,12.93724589,236.37,236.25,10.31345091]
[1732108137610,2.1131,236.37,236.25,10.31345091]
[1732108137810,2.1131,236.37,236.28,10.31345091]
[1732108138509,2.1131,236.37,236.25,10.31345091]
[1732108139816,10.82334843,236.38,236.25,10.31345091]
[1732108140417,10.31345091,236.37,236.19,10.31345091]
[1732108140622,10.82334843,236.38,236.19,10.31345091]
[1732108140623,10.31345091,236.34,236.19,10.31345091]
[1732108140918,10.31345091,236.31,236.18,4.6234]
[1732108141317,10.31345091,236.31,236.18,2.3458]
[1732108141511,10.82282569,236.3,236.18,2.3458]
[1732108141715,10.31345091,236.28,236.18,2.3458]
[1732108141910,2.28,236.27,236.13,10.31345091]
[1732108142111,2.1144,236.23,236.13,10.31345091]
[1732108142911,2.1142,236.25,236.13,10.31345091]
[1732108143111,6.8128,236.27,236.13,10.31345091]
[1732108143712,4.5328,236.27,236.13,10.31345091]
[1732108143916,2.28,236.26,236.13,10.31345091]
[1732108144324,2.1143,236.23,236.13,10.31345091]
[1732108145020,4.3943,236.23,236.13,10.31345091]
[1732108145516,2.28,236.23,236.13,10.31345091]
[1732108145720,2.28,236.23,236.11,2.2219]
[1732108145920,10.31345091,236.22,236.1,2.2183]
[1732108146117,2.1147,236.19,236.1,2.2183]
[1732108146319,10.31345091,236.22,236.1,2.2183]
[1732108146824,2.1149,236.16,236.1,2.2183]
[1732108147023,2.1149,236.16,236.05,4.5359]
[1732108147221,2.28,236.17,236.05,2.2559]
[1732108147924,2.115,236.16,236.05,2.2559]
[1732108149125,2.28,236.17,236.07,10.31345091]
[1732108149325,4.5328,236.27,236.05,2.2559]
[1732108149326,10.31345091,236.25,236.1,10.31345091]
[1732108149529,2.28,236.24,236.1,10.31345091]
[1732108150221,2.1146,236.2,236.1,10.31345091]
[1732108150624,2.28,236.24,236.1,10.31345091]
[1732108150825,2.1148,236.18,236.07,10.31345091]
[1732108151024,2.1148,236.18,236.05,2.2559]
[1732108151025,10.31345091,236.25,236.1,10.31345091]
[1732108151223,2.28,236.24,236.1,10.31345091]
[1732108152327,2.1146,236.21,236.1,10.31345091]
[1732108152527,10.31345091,236.25,236.1,10.31345091]
[1732108152730,10.31345091,236.25,236.09,2.28]
[1732108152731,2.28,236.24,236.13,10.31345091]
[1732108155325,2.1144,236.22,236.13,10.31345091]
[1732108157230,4.3941,236.26,236.16,10.31345091]
[1732108157530,2.3126,236.27,236.16,10.31345091]
[1732108157731,2.28,236.28,236.16,10.31345091]
[1732108157927,2.3711,236.33,236.19,10.31345091]
[1732108158127,2.2918,236.34,236.22,10.31345091]
[1732108158331,2.28,236.36,236.23,10.31345091]
[1732108158729,2.1134,236.34,236.23,10.31345091]
[1732108160127,2.28,236.36,236.26,10.31345091]
[1732108160327,4.3932,236.36,236.26,10.31345091]
[1732108160534,2.28,236.36,236.26,10.31345091]
[1732108160829,4.608,236.39,236.2,10.31345091]
[1732108160830,10.31345091,236.37,236.2,10.31345091]
[1732108161033,10.31345091,236.34,236.2,10.31345091]
[1732108161434,2.1139,236.28,236.2,10.31345091]
[1732108161636,10.31345091,236.34,236.2,10.31345091]
[1732108162132,2.1136,236.31,236.2,10.31345091]
[1732108163134,10.31345091,236.34,236.2,10.31345091]
[1732108163330,4.608,236.39,236.2,10.31345091]
[1732108163331,2.1135,236.32,236.2,10.31345091]
[1732108163742,2.1135,236.32,236.23,10.31345091]
[1732108163930,2.1135,236.32,236.16,17.41045091]
[1732108163931,4.608,236.39,236.26,10.31345091]
[1732108164136,2.28,236.37,236.26,10.31345091]
[1732108165236,2.1133,236.34,236.26,10.31345091]
[1732108166442,2.1133,236.34,236.24,2.28]
[1732108166744,2.1135,236.32,236.24,2.28]
[1732108167441,2.1134,236.34,236.24,2.28]
[1732108167642,12.59345091,236.37,236.24,2.28]
[1732108168035,2.1134,236.34,236.24,2.28]
[1732108168232,12.59345091,236.37,236.24,2.28]
[1732108168233,2.28,236.37,236.24,2.28]
[1732108168440,45.18515563,236.46,236.26,10.31345091]
[1732108168641,10.31345091,236.43,236.26,10.31345091]
[1732108168844,13.06747188,236.42,236.29,10.31345091]
[1732108169040,2.1127,236.42,236.32,10.31345091]
[1732108169237,2.28,236.43,236.32,10.31345091]
[1732108169937,2.1127,236.41,236.32,10.31345091]
[1732108170242,45.18515563,236.46,236.32,10.31345091]
[1732108170440,2.28,236.45,236.32,10.31345091]
[1732108171050,0.30874,236.44,236.32,10.31345091]
[1732108171246,2.1126,236.42,236.32,10.31345091]
[1732108171843,2.1127,236.41,236.32,10.31345091]
[1732108172043,0.30874,236.44,236.32,10.31345091]
[1732108172846,0.30874,236.44,236.3,2.28]
[1732108172847,0.30874,236.44,236.35,10.31345091]
[1732108173145,0.30874,236.44,236.26,2.1621]
[1732108173448,10.31345091,236.43,236.26,12.47555091]
[1732108173849,2.1131,236.37,236.26,12.47555091]
[1732108174053,2.28,236.4,236.26,12.47555091]
[1732108174752,2.1132,236.36,236.26,12.47555091]
[1732108175246,2.1133,236.35,236.26,12.47555091]
[1732108175442,12.59345091,236.4,236.26,2.1621]
[1732108176048,2.28,236.4,236.28,10.31345091]
[1732108176449,2.1131,236.37,236.28,10.31345091]
[1732108177844,4.505,236.42,236.28,10.31345091]
[1732108178044,2.113,236.38,236.28,10.31345091]
[1732108179053,2.1129,236.39,236.28,10.31345091]
[1732108179250,2.28,236.41,236.28,10.31345091]
[1732108179853,2.1131,236.37,236.28,10.31345091]
[1732108180054,2.28,236.41,236.28,10.31345091]
[1732108180553,0.30874,236.44,236.34,10.31345091]
[1732108181453,2.1127,236.41,236.34,10.31345091]
[1732108182053,0.30874,236.44,236.34,10.31345091]
[1732108182054,2.1126,236.42,236.34,10.31345091]
[1732108183048,2.42124,236.44,236.34,10.31345091]
[1732108183248,0.30874,236.44,236.34,10.31345091]
[1732108183756,2.1125,236.43,236.34,10.31345091]
[1732108184062,0.30874,236.44,236.34,10.31345091]
[1732108185257,0.30874,236.44,236.37,10.31345091]
[1732108185857,2.42114,236.44,236.37,10.31345091]
[1732108186051,0.30874,236.44,236.37,10.31345091]
[1732108186255,0.30874,236.44,236.4,10.31345091]
[1732108186555,45.17157239,236.53,236.4,10.31345091]
[1732108187057,2.112,236.49,236.4,10.31345091]
[1732108187458,2.1119,236.5,236.4,10.31345091]
[1732108187660,2.1119,236.5,236.43,10.31345091]
[1732108187854,45.17157239,236.53,236.43,10.31345091]
[1732108190171,2.1117,236.52,236.43,10.31345091]
[1732108190564,2.1117,236.52,236.46,10.31345091]
[1732108191874,10.73874304,236.56,236.38,4.5692]
[1732108191875,10.31345091,236.55,236.38,4.5692]
[1732108192163,10.31345091,236.52,236.38,4.5692]
[1732108192469,10.31345091,236.52,236.38,2.2977]
[1732108192470,15.31724304,236.51,236.38,2.2977]
[1732108192665,4.5785,236.51,236.38,2.2977]
[1732108192869,4.5785,236.51,236.39,10.31345091]
[1732108193065,2.1121,236.48,236.39,10.31345091]
[1732108193272,2.1121,236.48,236.38,2.2977]
[1732108193273,4.4014,236.54,236.43,10.31345091]
[1732108193469,2.28,236.56,236.44,2.28]
[1732108193667,10.74331478,236.55,236.44,2.28]
[1732108194170,10.74331478,236.55,236.46,10.31345091]
[1732108194576,2.1115,236.55,236.46,10.31345091]
[1732108194969,10.74510971,236.58,236.46,10.31345091]
[1732108195269,2.1115,236.54,236.46,10.31345091]
[1732108197968,2.1115,236.55,236.46,10.31345091]
[1732108198171,10.74510971,236.57,236.49,10.31345091]
[1732108198473,2.28,236.61,236.49,10.31345091]
[1732108198674,10.75021919,236.6,236.5,2.28]
[1732108198874,2.1114,236.56,236.5,2.28]
[1732108199279,10.75021919,236.6,236.5,2.28]
[1732108199470,2.1114,236.56,236.5,2.28]
[1732108200367,2.1113,236.57,236.5,2.28]
[1732108200775,10.75021919,236.6,236.5,2.28]
[1732108200975,2.1114,236.56,236.5,2.28]
[1732108201170,10.75021919,236.6,236.46,12.59345091]
[1732108201578,2.1115,236.55,236.46,12.59345091]
[1732108201877,2.1115,236.55,236.39,4.3937]
[1732108201878,10.31345091,236.59,236.43,10.31345091]
[1732108202073,10.75021919,236.58,236.43,12.59345091]
[1732108202279,2.1118,236.52,236.43,12.59345091]
[1732108202575,10.75021919,236.58,236.43,12.59345091]